[Event "Late-Titled-Tuesday-Blitz-April-30-2024"]
[Site "Chess.com"]
[Date "2024.04.30"]
[Round "2"]
[White "vugarrasulov"]
[Black "Road2GM3000"]
[Result "1-0"]
[WhiteElo "2968"]
[BlackElo "2522"]
[TimeControl "180+1"]
[EndTime "14:17:22 PDT"]
[Termination "vugarrasulov won by resignation"]

1. d4 {[%clk 0:03:00.9]} 1... d5 {[%clk 0:02:48.7]} 2. c4 {[%clk 0:03:01.4]}
2... c6 {[%clk 0:02:48.1]} 3. Nc3 {[%clk 0:03:01]} 3... Nf6 {[%clk 0:02:48.2]}
4. e3 {[%clk 0:03:01.2]} 4... a6 {[%clk 0:02:47.3]} 5. Nf3 {[%clk 0:03:00.8]}
5... Bf5 {[%clk 0:02:46.8]} 6. Qb3 {[%clk 0:02:57.9]} 6... Ra7 {[%clk
0:02:46.1]} 7. Bd2 {[%clk 0:02:56.1]} 7... e6 {[%clk 0:02:44.3]} 8. Nh4 {[%clk
0:02:50.8]} 8... Bg6 {[%clk 0:02:41.9]} 9. Be2 {[%clk 0:02:49.7]} 9... Nbd7
{[%clk 0:02:36]} 10. Nxg6 {[%clk 0:02:47.5]} 10... hxg6 {[%clk 0:02:36.1]} 11.
O-O-O {[%clk 0:02:47.4]} 11... Be7 {[%clk 0:02:34]} 12. Qc2 {[%clk 0:02:46.3]}
12... dxc4 {[%clk 0:02:28.4]} 13. Bxc4 {[%clk 0:02:46.2]} 13... b5 {[%clk
0:02:29.1]} 14. Be2 {[%clk 0:02:46.8]} 14... c5 {[%clk 0:02:13.9]} 15. dxc5
{[%clk 0:02:46.4]} 15... Nxc5 {[%clk 0:02:06.3]} 16. Kb1 {[%clk 0:02:42.2]}
16... Rc7 {[%clk 0:02:04.5]} 17. Bc1 {[%clk 0:02:41.9]} 17... Qc8 {[%clk
0:01:58]} 18. Bf3 {[%clk 0:02:39]} 18... Na4 {[%clk 0:01:45.9]} 19. Rd3 {[%clk
0:02:29]} 19... Nxc3+ {[%clk 0:01:43.5]} 20. Rxc3 {[%clk 0:02:29.3]} 20... Rxc3
{[%clk 0:01:40.9]} 21. Qxc3 {[%clk 0:02:30.2]} 21... Qxc3 {[%clk 0:01:39.5]} 22.
bxc3 {[%clk 0:02:31.1]} 22... Kd7 {[%clk 0:01:25.3]} 23. h3 {[%clk 0:02:30.3]}
23... Nd5 {[%clk 0:01:15.9]} 24. Rd1 {[%clk 0:02:29.1]} 24... Kc6 {[%clk
0:01:03.3]} 25. Kc2 {[%clk 0:02:29]} 25... Rd8 {[%clk 0:00:56.6]} 26. Kb3 {[%clk
0:02:28]} 26... Kb6 {[%clk 0:00:52.8]} 27. e4 {[%clk 0:02:28.3]} 27... Nc7
{[%clk 0:00:38.7]} 28. Be3+ {[%clk 0:02:28.7]} 28... Kb7 {[%clk 0:00:36.9]} 29.
e5+ {[%clk 0:02:28.4]} 29... Kb8 {[%clk 0:00:36]} 30. Rxd8+ {[%clk 0:02:27.6]}
30... Bxd8 {[%clk 0:00:36.9]} 31. Bc5 {[%clk 0:02:26.8]} 31... g5 {[%clk
0:00:26]} 32. c4 {[%clk 0:02:22.9]} 32... bxc4+ {[%clk 0:00:20.5]} 33. Kxc4
{[%clk 0:02:23.8]} 33... Nb5 {[%clk 0:00:19.9]} 34. a4 {[%clk 0:02:23]} 34...
Nc7 {[%clk 0:00:19.3]} 35. Bd6 {[%clk 0:02:16.5]} 35... Kc8 {[%clk 0:00:18.5]}
36. Kc5 {[%clk 0:02:16.2]} 36... Ne8 {[%clk 0:00:16.9]} 37. Bf8 {[%clk
0:02:09.7]} 37... Bc7 {[%clk 0:00:16.5]} 38. Bc6 {[%clk 0:02:09]} 38... Kd8
{[%clk 0:00:15.6]} 39. Bxe8 {[%clk 0:02:08.6]} 39... Kxe8 {[%clk 0:00:16.3]} 40.
Bxg7 {[%clk 0:02:09.3]} 40... Kd7 {[%clk 0:00:15.2]} 41. Bf6 {[%clk 0:02:09.3]}
41... Bb8 {[%clk 0:00:14.7]} 42. Kb6 {[%clk 0:02:08.5]} 42... Bc7+ {[%clk
0:00:14.2]} 43. Kxa6 {[%clk 0:02:08.2]} 43... Kc6 {[%clk 0:00:15]} 44. g4 {[%clk
0:02:07.9]} 44... Bb8 {[%clk 0:00:14.6]} 45. a5 {[%clk 0:02:06.9]} 45... Bc7
{[%clk 0:00:11.1]} 46. f3 {[%clk 0:02:07.5]} 46... Bb8 {[%clk 0:00:11.4]} 47.
Bxg5 {[%clk 0:02:07.8]} 47... Bxe5 {[%clk 0:00:11.5]} 48. h4 {[%clk 0:02:07.4]}
48... f5 {[%clk 0:00:07.3]} 49. gxf5 {[%clk 0:02:06.1]} 49... exf5 {[%clk
0:00:08.2]} 50. h5 {[%clk 0:02:06.7]} 50... Bh8 {[%clk 0:00:03.4]} 51. h6 {[%clk
0:02:06]} 51... Bd4 {[%clk 0:00:04.1]} 52. h7 {[%clk 0:02:05.5]} 52... Bg7
{[%clk 0:00:03.6]} 53. Be3 {[%clk 0:02:01.7]} 53... Bf6 {[%clk 0:00:03]} 54. Ka7
{[%clk 0:02:02.1]} 54... Kc7 {[%clk 0:00:03]} 55. a6 {[%clk 0:02:02.4]} 55...
Bg7 {[%clk 0:00:02.7]} 56. Bf4+ {[%clk 0:02:02.1]} 56... Kc6 {[%clk 0:00:02]}
57. Kb8 {[%clk 0:02:02.5]} 1-0

[Event "Late-Titled-Tuesday-Blitz-April-30-2024"]
[Site "Chess.com"]
[Date "2024.04.30"]
[Round "2"]
[White "jefferyx"]
[Black "Evan_Attaker"]
[Result "1-0"]
[WhiteElo "3093"]
[BlackElo "2639"]
[TimeControl "180+1"]
[EndTime "14:17:28 PDT"]
[Termination "jefferyx won by checkmate"]

1. d4 {[%clk 0:03:00.9]} 1... c5 {[%clk 0:02:59.1]} 2. d5 {[%clk 0:03:01]} 2...
g6 {[%clk 0:02:59.4]} 3. e4 {[%clk 0:03:00.8]} 3... Bg7 {[%clk 0:02:59.8]} 4.
Nc3 {[%clk 0:03:00.8]} 4... d6 {[%clk 0:03:00.3]} 5. Nf3 {[%clk 0:02:57.8]} 5...
Nf6 {[%clk 0:03:00.3]} 6. Be2 {[%clk 0:02:56.4]} 6... O-O {[%clk 0:03:00.4]} 7.
Nd2 {[%clk 0:02:56.7]} 7... Na6 {[%clk 0:02:58.5]} 8. O-O {[%clk 0:02:56.2]}
8... Nc7 {[%clk 0:02:59]} 9. a4 {[%clk 0:02:56.4]} 9... Bd7 {[%clk 0:02:52.7]}
10. Nc4 {[%clk 0:02:56.3]} 10... Rb8 {[%clk 0:02:46.6]} 11. Bf4 {[%clk
0:02:55.2]} 11... b5 {[%clk 0:02:22.2]} 12. axb5 {[%clk 0:02:54.9]} 12... Bxb5
{[%clk 0:02:22.4]} 13. Nxb5 {[%clk 0:02:48.1]} 13... Nxb5 {[%clk 0:02:23.3]} 14.
Bd3 {[%clk 0:02:48]} 14... Nd7 {[%clk 0:02:20.8]} 15. c3 {[%clk 0:02:45.5]}
15... Qc7 {[%clk 0:02:03.9]} 16. Na5 {[%clk 0:02:45.3]} 16... Rb6 {[%clk
0:01:07.9]} 17. Nc4 {[%clk 0:02:45.2]} 17... Rbb8 {[%clk 0:01:07.3]} 18. Na5
{[%clk 0:02:45.5]} 18... Rb6 {[%clk 0:01:07.6]} 19. Nc6 {[%clk 0:02:46]} 19...
e5 {[%clk 0:01:00.7]} 20. Bd2 {[%clk 0:02:30.9]} 20... Ra8 {[%clk 0:00:49.3]}
21. Qe2 {[%clk 0:01:56.2]} 21... Qb7 {[%clk 0:00:41.3]} 22. Na5 {[%clk
0:01:56.4]} 22... Qb8 {[%clk 0:00:41.4]} 23. Nc4 {[%clk 0:01:56.8]} 23... Rb7
{[%clk 0:00:40]} 24. Ra6 {[%clk 0:01:57.3]} 24... Bf8 {[%clk 0:00:35]} 25. Na5
{[%clk 0:01:57.6]} 25... Nc7 {[%clk 0:00:20.6]} 26. Nxb7 {[%clk 0:01:57.9]}
26... Qxb7 {[%clk 0:00:21.5]} 27. Ra2 {[%clk 0:01:58]} 27... Nb6 {[%clk
0:00:20.6]} 28. Rfa1 {[%clk 0:01:57.6]} 28... Kg7 {[%clk 0:00:18.5]} 29. Ba6
{[%clk 0:01:57.7]} 29... Nxa6 {[%clk 0:00:18.6]} 30. Rxa6 {[%clk 0:01:53.5]}
30... Nd7 {[%clk 0:00:15]} 31. b4 {[%clk 0:01:53.2]} 31... cxb4 {[%clk
0:00:14.7]} 32. cxb4 {[%clk 0:01:54.1]} 32... Nf6 {[%clk 0:00:15.2]} 33. f3
{[%clk 0:01:49.7]} 33... h5 {[%clk 0:00:15.4]} 34. b5 {[%clk 0:01:45.5]} 34...
Rc8 {[%clk 0:00:12.2]} 35. Be3 {[%clk 0:01:44.6]} 35... Rc3 {[%clk 0:00:10.7]}
36. Rxa7 {[%clk 0:01:37.7]} 36... Qb8 {[%clk 0:00:10]} 37. b6 {[%clk 0:01:34.9]}
37... Rb3 {[%clk 0:00:04.1]} 38. Ra8 {[%clk 0:01:34.8]} 38... Qb7 {[%clk
0:00:04.4]} 39. R1a7 {[%clk 0:01:34.9]} 39... Rb1+ {[%clk 0:00:05]} 40. Kf2
{[%clk 0:01:33.2]} 40... Qd7 {[%clk 0:00:03.6]} 41. Rxd7 {[%clk 0:01:32.7]}
41... Nxd7 {[%clk 0:00:04.5]} 42. Qc2 {[%clk 0:01:28.8]} 42... Rh1 {[%clk
0:00:05]} 43. b7 {[%clk 0:01:28.1]} 43... Rxh2 {[%clk 0:00:04.5]} 44. Qc8 {[%clk
0:01:27.6]} 44... Nf6 {[%clk 0:00:04.3]} 45. Qxf8+ {[%clk 0:01:27.3]} 45... Kh7
{[%clk 0:00:03.8]} 46. Qxf7# {[%clk 0:01:28.2]} 1-0

[Event "Late-Titled-Tuesday-Blitz-April-30-2024"]
[Site "Chess.com"]
[Date "2024.04.30"]
[Round "2"]
[White "Jimonios"]
[Black "DanielNaroditsky"]
[Result "0-1"]
[WhiteElo "2630"]
[BlackElo "3042"]
[TimeControl "180+1"]
[EndTime "14:17:31 PDT"]
[Termination "DanielNaroditsky won by resignation"]

1. c4 {[%clk 0:03:00.9]} 1... Nf6 {[%clk 0:03:00.9]} 2. Nc3 {[%clk 0:03:00.5]}
2... g6 {[%clk 0:03:00.7]} 3. g3 {[%clk 0:02:55.9]} 3... d6 {[%clk 0:03:01.6]}
4. Bg2 {[%clk 0:02:56.1]} 4... Bg7 {[%clk 0:03:02.5]} 5. e4 {[%clk 0:02:56.2]}
5... O-O {[%clk 0:03:02.1]} 6. Nge2 {[%clk 0:02:56.8]} 6... c5 {[%clk
0:03:02.7]} 7. O-O {[%clk 0:02:57.2]} 7... Nc6 {[%clk 0:03:03.4]} 8. d3 {[%clk
0:02:57.6]} 8... Bg4 {[%clk 0:03:01.4]} 9. h3 {[%clk 0:02:57.1]} 9... Bxe2
{[%clk 0:03:01.3]} 10. Nxe2 {[%clk 0:02:57]} 10... Nd7 {[%clk 0:03:01.1]} 11.
Rb1 {[%clk 0:02:52.8]} 11... a6 {[%clk 0:03:00.4]} 12. a3 {[%clk 0:02:47.2]}
12... b5 {[%clk 0:03:00.4]} 13. cxb5 {[%clk 0:01:01.7]} 13... axb5 {[%clk
0:03:01.3]} 14. e5 {[%clk 0:00:55.5]} 14... Rc8 {[%clk 0:02:47]} 15. e6 {[%clk
0:00:55.2]} 15... fxe6 {[%clk 0:02:45.3]} 16. Qb3 {[%clk 0:00:47.7]} 16... d5
{[%clk 0:02:41.6]} 17. Qxb5 {[%clk 0:00:43.6]} 17... Nd4 {[%clk 0:02:34.6]} 18.
Nxd4 {[%clk 0:00:41.9]} 18... Bxd4 {[%clk 0:02:35.5]} 19. Bh6 {[%clk 0:00:25.8]}
19... Rb8 {[%clk 0:02:30.9]} 20. Qa4 {[%clk 0:00:18.7]} 20... Rf5 {[%clk
0:02:24.8]} 21. g4 {[%clk 0:00:15.9]} 21... Rf7 {[%clk 0:02:24.3]} 22. Qc2
{[%clk 0:00:13.6]} 22... Ne5 {[%clk 0:02:20.6]} 23. Kh1 {[%clk 0:00:11]} 23...
Qd6 {[%clk 0:02:09]} 24. f4 {[%clk 0:00:10.7]} 24... Nc6 {[%clk 0:02:07.2]} 25.
Qe2 {[%clk 0:00:09.8]} 25... Bg7 {[%clk 0:02:06.2]} 26. Bxg7 {[%clk 0:00:08.9]}
26... Kxg7 {[%clk 0:02:07.1]} 27. Qe3 {[%clk 0:00:08.7]} 27... Rbf8 {[%clk
0:02:07]} 28. Rbe1 {[%clk 0:00:07.8]} 28... Nd4 {[%clk 0:02:04.1]} 29. Rf2
{[%clk 0:00:05.7]} 29... Rxf4 {[%clk 0:02:03.2]} 30. Rxf4 {[%clk 0:00:05.9]}
30... Qxf4 {[%clk 0:02:02.5]} 31. b4 {[%clk 0:00:05.8]} 31... Qxe3 {[%clk
0:02:00]} 32. Rxe3 {[%clk 0:00:05.7]} 32... cxb4 {[%clk 0:02:00.9]} 33. axb4
{[%clk 0:00:05.8]} 33... Rb8 {[%clk 0:02:01.2]} 34. g5 {[%clk 0:00:01.8]} 34...
Rxb4 {[%clk 0:02:00.6]} 35. Kh2 {[%clk 0:00:01.9]} 35... Rb2 {[%clk 0:01:58.2]}
36. h4 {[%clk 0:00:01.4]} 36... Nf5 {[%clk 0:01:49.3]} 37. Rh3 {[%clk
0:00:01.6]} 37... e5 {[%clk 0:01:46.9]} 38. Kg1 {[%clk 0:00:02]} 38... e6 {[%clk
0:01:46.7]} 39. Bf3 {[%clk 0:00:02]} 39... Rd2 {[%clk 0:01:44.7]} 40. Bg4 {[%clk
0:00:02.9]} 40... Nd4 {[%clk 0:01:44.6]} 41. Kf1 {[%clk 0:00:03.2]} 41... Nf5
{[%clk 0:01:43.5]} 42. h5 {[%clk 0:00:04.1]} 42... gxh5 {[%clk 0:01:43.4]} 43.
Bxh5 {[%clk 0:00:05]} 43... e4 {[%clk 0:01:41.9]} 44. dxe4 {[%clk 0:00:05]}
44... dxe4 {[%clk 0:01:42.8]} 45. Bg4 {[%clk 0:00:05.6]} 45... Kg6 {[%clk
0:01:39.3]} 46. Be2 {[%clk 0:00:05.3]} 46... Kxg5 {[%clk 0:01:38.4]} 47. Rh5+
{[%clk 0:00:04.8]} 47... Kf4 {[%clk 0:01:38.5]} 48. Kf2 {[%clk 0:00:05.3]} 48...
Rxe2+ {[%clk 0:01:37.6]} 49. Kxe2 {[%clk 0:00:06.2]} 49... Ng3+ {[%clk
0:01:37.1]} 50. Kf2 {[%clk 0:00:07.1]} 50... Nxh5 {[%clk 0:01:37.8]} 51. Ke1
{[%clk 0:00:08]} 51... e3 {[%clk 0:01:38.2]} 0-1

[Event "Late-Titled-Tuesday-Blitz-April-30-2024"]
[Site "Chess.com"]
[Date "2024.04.30"]
[Round "2"]
[White "CDOEspiao"]
[Black "Kobalia"]
[Result "0-1"]
[WhiteElo "2543"]
[BlackElo "2776"]
[TimeControl "180+1"]
[EndTime "14:17:32 PDT"]
[Termination "Kobalia won by resignation"]

1. Nf3 {[%clk 0:02:59.8]} 1... g6 {[%clk 0:02:59.1]} 2. d4 {[%clk 0:02:58.2]}
2... Bg7 {[%clk 0:02:58.5]} 3. c4 {[%clk 0:02:59]} 3... d6 {[%clk 0:02:57.5]} 4.
Nc3 {[%clk 0:02:59.3]} 4... Nf6 {[%clk 0:02:55.3]} 5. e4 {[%clk 0:02:59.7]} 5...
O-O {[%clk 0:02:55.3]} 6. Be2 {[%clk 0:03:00.3]} 6... e5 {[%clk 0:02:55]} 7. O-O
{[%clk 0:02:59.7]} 7... Nc6 {[%clk 0:02:55]} 8. d5 {[%clk 0:03:00.1]} 8... Ne7
{[%clk 0:02:54.8]} 9. Ne1 {[%clk 0:03:00.9]} 9... Ne8 {[%clk 0:02:53.7]} 10. Nd3
{[%clk 0:03:01.6]} 10... f5 {[%clk 0:02:53.9]} 11. Bd2 {[%clk 0:03:02.2]} 11...
Nf6 {[%clk 0:02:53.7]} 12. f3 {[%clk 0:03:02.2]} 12... f4 {[%clk 0:02:53.8]} 13.
c5 {[%clk 0:03:02.5]} 13... g5 {[%clk 0:02:52.3]} 14. cxd6 {[%clk 0:03:02.7]}
14... cxd6 {[%clk 0:02:52.2]} 15. Nf2 {[%clk 0:03:03.3]} 15... a6 {[%clk
0:02:50.3]} 16. Qc2 {[%clk 0:03:03.2]} 16... h5 {[%clk 0:02:50.4]} 17. h3 {[%clk
0:03:03.6]} 17... Qe8 {[%clk 0:02:48.9]} 18. Rfc1 {[%clk 0:03:03.4]} 18... Qg6
{[%clk 0:02:47.8]} 19. Qd1 {[%clk 0:03:03.8]} 19... Kh8 {[%clk 0:02:40.8]} 20.
Na4 {[%clk 0:03:00.1]} 20... Nd7 {[%clk 0:02:35.8]} 21. Rc7 {[%clk 0:02:42.4]}
21... b5 {[%clk 0:02:35.3]} 22. Nc3 {[%clk 0:02:38.4]} 22... Ng8 {[%clk
0:02:35.2]} 23. Rc1 {[%clk 0:02:34.8]} 23... Nh6 {[%clk 0:02:30]} 24. a4 {[%clk
0:02:23.2]} 24... b4 {[%clk 0:02:23.1]} 25. Na2 {[%clk 0:02:15.6]} 25... a5
{[%clk 0:02:23.3]} 26. R1c6 {[%clk 0:02:10.3]} 26... Nf7 {[%clk 0:02:07.7]} 27.
Nc1 {[%clk 0:02:04.2]} 27... Nf6 {[%clk 0:01:56.3]} 28. Nb3 {[%clk 0:01:52.9]}
28... Bd7 {[%clk 0:01:48.7]} 29. Ra6 {[%clk 0:01:42.1]} 29... Rxa6 {[%clk
0:01:47]} 30. Bxa6 {[%clk 0:01:43]} 30... Bxa4 {[%clk 0:01:46.9]} 31. Bc4 {[%clk
0:01:33.3]} 31... g4 {[%clk 0:01:40.5]} 32. hxg4 {[%clk 0:01:30.2]} 32... hxg4
{[%clk 0:01:39.3]} 33. Nxg4 {[%clk 0:01:25]} 33... Nxg4 {[%clk 0:01:34.9]} 34.
fxg4 {[%clk 0:01:25.9]} 34... Ng5 {[%clk 0:01:35]} 35. Qa1 {[%clk 0:01:21.9]}
35... Bxb3 {[%clk 0:01:34]} 36. Bxb3 {[%clk 0:01:22.8]} 36... f3 {[%clk
0:01:34.4]} 37. Bd1 {[%clk 0:00:59]} 37... f2+ {[%clk 0:01:32.4]} 38. Kf1 {[%clk
0:00:58.6]} 38... Nxe4 {[%clk 0:01:32.5]} 39. Bf3 {[%clk 0:00:53.8]} 39... Nxd2+
{[%clk 0:01:31]} 40. Kxf2 {[%clk 0:00:54.4]} 40... e4 {[%clk 0:01:30.8]} 41. Ke3
{[%clk 0:00:42.6]} 41... Bh6+ {[%clk 0:01:29.2]} 42. g5 {[%clk 0:00:36.2]} 42...
Bxg5+ {[%clk 0:01:28.9]} 43. Kf2 {[%clk 0:00:35.8]} 43... exf3 {[%clk
0:01:26.9]} 44. Qh1+ {[%clk 0:00:32.4]} 44... Bh6 {[%clk 0:01:24.7]} 45. gxf3
{[%clk 0:00:29.9]} 45... Nxf3 {[%clk 0:01:23.6]} 46. Ke2 {[%clk 0:00:26.8]}
46... Nd4+ {[%clk 0:01:22.9]} 47. Kd1 {[%clk 0:00:26.5]} 47... Qb1+ {[%clk
0:01:22.1]} 0-1

[Event "Late-Titled-Tuesday-Blitz-April-30-2024"]
[Site "Chess.com"]
[Date "2024.04.30"]
[Round "2"]
[White "1800_strength"]
[Black "Klendi"]
[Result "1-0"]
[WhiteElo "2807"]
[BlackElo "2423"]
[TimeControl "180+1"]
[EndTime "14:17:37 PDT"]
[Termination "1800_strength won by resignation"]

1. g4 {[%clk 0:03:00.9]} 1... d5 {[%clk 0:02:59.4]} 2. Bg2 {[%clk 0:03:00.6]}
2... Bxg4 {[%clk 0:02:59.6]} 3. c4 {[%clk 0:03:00.6]} 3... c6 {[%clk 0:02:58.7]}
4. Qb3 {[%clk 0:03:00.3]} 4... e6 {[%clk 0:02:56.8]} 5. cxd5 {[%clk 0:02:59.5]}
5... exd5 {[%clk 0:02:17.4]} 6. Qxb7 {[%clk 0:02:58.4]} 6... Nd7 {[%clk
0:02:17.6]} 7. Nc3 {[%clk 0:02:50.3]} 7... Qc8 {[%clk 0:02:15.6]} 8. Qxc8+
{[%clk 0:02:48.8]} 8... Rxc8 {[%clk 0:02:16.5]} 9. d4 {[%clk 0:02:49.1]} 9...
Ngf6 {[%clk 0:02:15.9]} 10. Bf4 {[%clk 0:02:48.8]} 10... h6 {[%clk 0:02:12.7]}
11. Nf3 {[%clk 0:02:47.8]} 11... Nh5 {[%clk 0:02:11]} 12. Bd2 {[%clk 0:02:45.7]}
12... Bd6 {[%clk 0:02:09.6]} 13. O-O {[%clk 0:02:24.7]} 13... O-O {[%clk
0:02:08]} 14. Rac1 {[%clk 0:02:24.2]} 14... Rfe8 {[%clk 0:02:04.3]} 15. e3
{[%clk 0:02:24.3]} 15... Nhf6 {[%clk 0:02:01.4]} 16. Rfe1 {[%clk 0:02:08.6]}
16... c5 {[%clk 0:01:59.1]} 17. Nb5 {[%clk 0:02:06.3]} 17... Bb8 {[%clk
0:01:57]} 18. dxc5 {[%clk 0:02:04.7]} 18... Nxc5 {[%clk 0:01:56.2]} 19. Nfd4
{[%clk 0:01:57.4]} 19... a6 {[%clk 0:01:51.9]} 20. Na3 {[%clk 0:01:45.4]} 20...
Nd3 {[%clk 0:01:50.2]} 21. Rxc8 {[%clk 0:01:45.9]} 21... Rxc8 {[%clk 0:01:50.2]}
22. Rb1 {[%clk 0:01:46.6]} 22... Ne4 {[%clk 0:01:39.4]} 23. Be1 {[%clk
0:01:32.8]} 23... Bh5 {[%clk 0:01:22.4]} 24. f3 {[%clk 0:01:29.5]} 24... Nd6
{[%clk 0:01:10.8]} 25. Bg3 {[%clk 0:01:22.8]} 25... Nc4 {[%clk 0:01:02.1]} 26.
Nxc4 {[%clk 0:01:16.9]} 26... dxc4 {[%clk 0:00:57.2]} 27. Bf1 {[%clk 0:01:09.8]}
27... Bg6 {[%clk 0:00:55.5]} 28. Bxb8 {[%clk 0:01:03.5]} 28... Rxb8 {[%clk
0:00:54.9]} 29. e4 {[%clk 0:01:04.1]} 29... Rxb2 {[%clk 0:00:50.6]} 30. Bxd3
{[%clk 0:01:02.5]} 30... Rd2 {[%clk 0:00:45]} 31. Bxc4 {[%clk 0:01:00.8]} 31...
Rxd4 {[%clk 0:00:45]} 32. Bd5 {[%clk 0:00:53.5]} 32... Kh7 {[%clk 0:00:39.9]}
33. Rb6 {[%clk 0:00:47.1]} 33... f5 {[%clk 0:00:29.2]} 34. Rd6 {[%clk
0:00:47.4]} 34... fxe4 {[%clk 0:00:26.5]} 35. Bg8+ {[%clk 0:00:47.3]} 35... Kxg8
{[%clk 0:00:18.8]} 36. Rxd4 {[%clk 0:00:48.2]} 36... exf3 {[%clk 0:00:18.9]} 37.
Rd6 {[%clk 0:00:48.5]} 37... a5 {[%clk 0:00:15.3]} 38. Rxg6 {[%clk 0:00:48.4]}
1-0

[Event "Late-Titled-Tuesday-Blitz-April-30-2024"]
[Site "Chess.com"]
[Date "2024.04.30"]
[Round "2"]
[White "h4parah5"]
[Black "kylelancman"]
[Result "1-0"]
[WhiteElo "3030"]
[BlackElo "2512"]
[TimeControl "180+1"]
[EndTime "14:17:38 PDT"]
[Termination "h4parah5 won on time"]

1. Nf3 {[%clk 0:03:00.9]} 1... c5 {[%clk 0:02:58.1]} 2. e4 {[%clk 0:02:58.1]}
2... g6 {[%clk 0:02:57.7]} 3. d4 {[%clk 0:02:55.6]} 3... cxd4 {[%clk 0:02:58.6]}
4. Nxd4 {[%clk 0:02:55.5]} 4... Nc6 {[%clk 0:02:58.3]} 5. Nc3 {[%clk 0:02:53.4]}
5... Bg7 {[%clk 0:02:57.6]} 6. Nb3 {[%clk 0:02:53.5]} 6... Nf6 {[%clk
0:02:57.6]} 7. g4 {[%clk 0:02:53.1]} 7... d6 {[%clk 0:02:51.7]} 8. g5 {[%clk
0:02:53.1]} 8... Nd7 {[%clk 0:02:46.4]} 9. h4 {[%clk 0:02:52.8]} 9... Nc5 {[%clk
0:02:43.2]} 10. f3 {[%clk 0:02:38.6]} 10... Be6 {[%clk 0:02:34.4]} 11. Be3
{[%clk 0:02:37.9]} 11... b6 {[%clk 0:02:30.1]} 12. Nd4 {[%clk 0:02:36.6]} 12...
Qd7 {[%clk 0:02:24.4]} 13. Bb5 {[%clk 0:02:32.8]} 13... Bxd4 {[%clk 0:02:17.4]}
14. Bxd4 {[%clk 0:02:33.7]} 14... Rg8 {[%clk 0:02:12.2]} 15. Nd5 {[%clk
0:02:25.7]} 15... Qb7 {[%clk 0:01:55.9]} 16. Be3 {[%clk 0:02:13.9]} 16... a6
{[%clk 0:01:54.7]} 17. Be2 {[%clk 0:02:12.7]} 17... Rc8 {[%clk 0:01:50.6]} 18.
c3 {[%clk 0:02:06.4]} 18... b5 {[%clk 0:01:37.4]} 19. b3 {[%clk 0:01:57.7]}
19... Ne5 {[%clk 0:01:22.8]} 20. Rc1 {[%clk 0:01:56.8]} 20... Bxd5 {[%clk
0:01:13.7]} 21. exd5 {[%clk 0:01:54.3]} 21... Ned7 {[%clk 0:01:12.5]} 22. f4
{[%clk 0:01:48.5]} 22... Nb6 {[%clk 0:01:11.4]} 23. Bf3 {[%clk 0:01:48.2]} 23...
a5 {[%clk 0:01:05.6]} 24. Kf2 {[%clk 0:01:44.3]} 24... Qa6 {[%clk 0:01:03.7]}
25. h5 {[%clk 0:01:40.2]} 25... b4 {[%clk 0:00:59.4]} 26. c4 {[%clk 0:01:34]}
26... a4 {[%clk 0:00:58.2]} 27. hxg6 {[%clk 0:01:29.3]} 27... hxg6 {[%clk
0:00:56.5]} 28. Bg4 {[%clk 0:01:28]} 28... Ra8 {[%clk 0:00:55.3]} 29. Bxc5
{[%clk 0:01:26.4]} 29... dxc5 {[%clk 0:00:54]} 30. Re1 {[%clk 0:01:26.1]} 30...
axb3 {[%clk 0:00:51.3]} 31. axb3 {[%clk 0:01:27]} 31... Qa2+ {[%clk 0:00:48]}
32. Re2 {[%clk 0:01:27.1]} 32... Qa7 {[%clk 0:00:45.4]} 33. Qd3 {[%clk
0:01:25.1]} 33... Rd8 {[%clk 0:00:40.8]} 34. Rce1 {[%clk 0:01:24.4]} 34... Nc8
{[%clk 0:00:14.8]} 35. Bxc8 {[%clk 0:01:20.4]} 35... Rxc8 {[%clk 0:00:15.7]} 36.
Qh3 {[%clk 0:01:12.9]} 36... Rc7 {[%clk 0:00:14.9]} 37. d6 {[%clk 0:01:11.7]}
37... Rd7 {[%clk 0:00:13.4]} 38. Rxe7+ {[%clk 0:01:11.3]} 38... Kd8 {[%clk
0:00:13.9]} 39. Qh7 {[%clk 0:01:07.6]} 39... Rf8 {[%clk 0:00:12]} 40. Qg7 {[%clk
0:01:07.5]} 40... Qa2+ {[%clk 0:00:11.1]} 41. R1e2 {[%clk 0:01:07.5]} 1-0